Cogmind - Beta 12 X1 @@@ ROGUE MODE // 2022.09.01 @ 17:23:30 Player: btmk16 Result: Self-destructed Performance ------------- Evolutions (8) 4000 Regions Visited (11) 2200 Robots Destroyed (18) 90 Value Destroyed (536) 536 Prototype IDs (6) 120 Alien Tech Used (0) 0 Bonus (1040) 1040 TOTAL SCORE: 7986 Bonus ------- High Alert Combat Kills 40 Entered DSFs 1000 Cogmind --------- Core Integrity 1004/1450 Matter 220/300 Energy 100/100 System Corruption 6% Temperature Cool (0) Movement Flying (17) Location -2/Research Parts ------- > --- POWER (2) -------- (None) > --- PROPULSION (8) --- Xenon Bombardment Thruster Xenon Bombardment Thruster Xenon Bombardment Thruster Xenon Bombardment Thruster Improved Diametric Drive Cooled Q-thruster Cooled Q-thruster > --- UTILITY (11) ----- Experimental Heat Sink Advanced Coolant Injector Large Storage Unit Improved Signal Interpreter Terrain Scan Processor Hacking Suite > --- WEAPON (2) ------- Power Sword Ionic Axe > --- INVENTORY (15) --- Light Antimatter Reactor Micro Antimatter Reactor Advanced Reaction Control System Layered Medium Armor Plating Layered Medium Armor Plating Hypervelocity Gauss Cannon Heavy Gauss Cannon Gamma Bomb Array Ionic Axe Peak State ------------ > --- POWER ------------ Light Antimatter Reactor Micro Antimatter Reactor > --- PROPULSION ------- Nuclear Pulse Array Nuclear Pulse Array Nuclear Pulse Array Impulse Thruster Impulse Thruster > --- UTILITY ---------- Experimental Heat Sink Experimental Heat Sink Advanced Coolant Injector Large Storage Unit Improved Signal Interpreter Terrain Scan Processor Improved Transmission Jammer Improved Reaction Control System Advanced Reaction Control System Improved Utility Shielding Hacking Suite > --- WEAPON ----------- Power Sword Ionic Axe > --- INVENTORY -------- Light Antimatter Reactor Light Quantum Reactor Light Quantum Reactor Xenon Bombardment Thruster Xenon Bombardment Thruster Xenon Bombardment Thruster Xenon Bombardment Thruster Xenon Bombardment Thruster Xenon Bombardment Thruster Hypervelocity Gauss Cannon Heavy Gauss Cannon Gamma Bomb Array Ionic Axe [Rating: 135] Favorites ----------- Power Micro Fission Core Engine Light Ion Engine Power Core Micro Fission Core Reactor Light Quantum Reactor Propulsion Nuclear Pulse Array Treads Light Treads Flight Unit Nuclear Pulse Array Utility Terrain Scan Processor Device Improved Terrain Scanner Storage Large Storage Unit Processor Terrain Scan Processor Hackware Hacking Suite Protection Light Armor Plating Weapon Power Sword Energy Gun EM Pulse Gun Ballistic Gun Hypervelocity Coil Gun Launcher Gamma Bomb Array Slashing Weapon Power Sword Build | -11 -10 -9 -8 -7 -6 -6 -5 -4 -4 -3 -2 ------- Run | Scr Mat Mat Mat Fac Fac DSF Fac Fac DSF Res Res Slots Evolved 16 | . . 2 2 2 2 . 2 2 . 2 2 Power 1 | . . . . 1 . . . . . . . Propulsion 6 | . . 2 1 1 . . . . . . 2 Utility 9 | . . . 1 . 2 . 2 2 . 2 . Weapon . | . . . . . . . . . . . . Parts Attached 70 | 4 6 2 3 . 2 3 4 4 4 3 35 Power 13 | . 2 . . . . . . 1 1 1 8 Engine 2 | . 2 . . . . . . . . . . Core 3 | . . . . . . . . . 1 . 2 Reactor 8 | . . . . . . . . 1 . 1 6 Propulsion 23 | 2 2 1 . . 1 3 . . 1 . 13 Treads 3 | 2 . . . . 1 . . . . . . Leg . | . . . . . . . . . . . . Wheel . | . . . . . . . . . . . . Hover . | . . . . . . . . . . . . Flight 20 | . 2 1 . . . 3 . . 1 . 13 Utility 23 | . 2 1 3 . 1 . 3 2 1 2 8 Device 15 | . 2 . 1 . 1 . 1 2 1 1 6 Storage 1 | . . . . . . . . . . . 1 Processor 2 | . . . 1 . . . 1 . . . . Hackware 2 | . . . 1 . . . . . . 1 . Protection 3 | . . 1 . . . . 1 . . . 1 Artifact . | . . . . . . . . . . . . Weapon 11 | 2 . . . . . . 1 1 1 . 6 Energy Gun 3 | 2 . . . . . . . 1 . . . Energy Cannon . | . . . . . . . . . . . . Ballistic Gun 1 | . . . . . . . 1 . . . . Ballistic Cannon . | . . . . . . . . . . . . Launcher 1 | . . . . . . . . . . . 1 Special Weapon . | . . . . . . . . . . . . Impact Weapon . | . . . . . . . . . . . . Slashing Weapon 6 | . . . . . . . . . 1 . 5 Piercing Weapon . | . . . . . . . . . . . . Special Melee Weapon . | . . . . . . . . . . . . Unidentified Prototypes 4 | . . . . . . . . . . . 4 Corrupted Parts 2 | . 1 . . . . . . . . . 1 System Corruption 7 | . 5 . . . . . . . . . 2 Parts Lost 27 | . . . 2 3 . 1 . . 4 2 15 Power 4 | . . . . 1 . . . . . . 3 Propulsion 11 | . . . 2 1 . . . . 1 . 7 Utility 10 | . . . . 1 . 1 . . 2 1 5 Weapon 2 | . . . . . . . . . 1 1 . Highest Loss Streak 7 | . . . 2 2 . 1 . . 2 1 7 To Critical Strikes . | . . . . . . . . . . . . Average Slot Usage (%) 58 | . 56 66 57 30 22 26 33 58 62 59 78 Engine 1 | . 5 11 9 2 . . . . . . . Core 1 | . . . . . . . . . . 1 2 Reactor 2 | . . . . . . . . 4 4 2 5 Treads 1 | . 17 . . . 2 4 . . . . . Flight 15 | . 8 33 23 5 . 6 17 15 15 14 22 Device 15 | . 5 11 9 6 6 6 5 15 21 21 23 Processor 6 | . . . 7 7 6 6 5 10 10 9 8 Hackware 2 | . . . 1 7 6 2 . . . . 4 Protection 1 | . . 11 7 . . . . 5 . . 1 Energy Gun 2 | . 19 . . . . . . 1 1 . . Ballistic Gun 1 | . . . . . . . 3 5 5 3 . Slashing Weapon 2 | . . . . . . . . . 3 4 5 Naked Turns . | . . . . . . . . . . . . Heaviest Build 53 | 3 5 7 7 4 1 1 12 37 37 36 53 Greatest Support 53 | 3 8 12 12 4 3 39 39 39 39 39 53 Greatest Overweight (x) 1 | . 1 . . . . . . . . . . Average Overweight (x) . | . . . . . . . . . . . . Largest Inventory Capacity 15 | 5 5 5 5 5 5 5 5 5 5 5 15 Average Capacity 7 | 5 5 5 5 5 5 5 5 5 5 5 11 Most Carried 15 | 4 5 5 5 5 5 5 5 5 5 4 15 Average Carried 6 | 2 4 4 4 4 5 5 4 4 4 3 9 Final Capacity 15 | 5 5 5 5 5 5 5 5 5 5 5 15 Final Carried 9 | 4 5 5 5 5 5 5 5 5 3 4 9 Class Distribution -------------------- 53% | Mutant 29% | Sprinter 16% | Ninja Dominant Class ---------------- Mutant | -10/Materials Mutant | -9/Materials Mutant | -8/Materials Mutant | -7/Factory Mutant | -6/Factory Mutant | -6/DSF Mutant | -5/Factory Mutant | -4/Factory Mutant | -4/DSF Ninja | -3/Research Sprinter | -2/Research Resources | -11 -10 -9 -8 -7 -6 -6 -5 -4 -4 -3 -2 ----------- Run | Scr Mat Mat Mat Fac Fac DSF Fac Fac DSF Res Res Matter Collected 707 | 199 71 50 . . . 6 . . . 84 297 Remotely . | . . . . . . . . . . . . Salvage Created 918 | . 96 . . . . . . . . 84 738 Parts 57 | . 9 . . . . . . . . 5 43 Haulers Intercepted 5 | . . . . . . . . . . 1 4 Recyclers Shooed . | . . . . . . . . . . . . Parts Field Recycled . | . . . . . . . . . . . . Retrieved Matter . | . . . . . . . . . . . . Parts Self-Destructed . | . . . . . . . . . . . . Prevented . | . . . . . . . . . . . . Kills | -11 -10 -9 -8 -7 -6 -6 -5 -4 -4 -3 -2 ------- Run | Scr Mat Mat Mat Fac Fac DSF Fac Fac DSF Res Res Combat Hostiles Destroyed 13 | . 4 . . . . . . . . . 9 Melee 9 | . . . . . . . . . . . 9 Guns 3 | . 3 . . . . . . . . . . AOE 1 | . 1 . . . . . . . . . . Classes Destroyed 3 | . 2 . . . . . . . . 1 . Hauler 5 | . . . . . . . . . . 1 4 Swarmer 12 | . 3 . . . . . . . . . 9 Grunt 1 | . 1 . . . . . . . . . . Best Kill Streak 5 | . 4 . . . . . . . . 1 5 Combat Bots Only 5 | . 4 . . . . . . . . . 5 Max Kills in Single Turn 1 | . 1 . . . . . . . . 1 1 Gunslinging . | . . . . . . . . . . . . Exploded 1 | . 1 . . . . . . . . . . Melee 1 | . . . . . . . . . . . 1 Uniques/NPCs Destroyed . | . . . . . . . . . . . . Combat | -11 -10 -9 -8 -7 -6 -6 -5 -4 -4 -3 -2 -------- Run | Scr Mat Mat Mat Fac Fac DSF Fac Fac DSF Res Res Damage Taken 3877 | . 199 . 106 466 . 295 . 40 393 512 1866 Core 1352 | . 34 . 30 383 . 295 . . 26 138 446 Absorbed by Shields 17 | . . . . . . . . . 17 . . Redirected to Shielding 104 | . . . . . . . . . . . 104 Core Remaining (%) 86 | 100 86 100 94 45 . 65 100 . 97 89 . Volleys Fired 11 | . 10 . . . . . . . . . 1 Largest 2 | . 2 . . . . . . . . . 1 Hottest 80 | . 80 . . . . . . . . . 80 Shots Fired 19 | . 18 . . . . . . . . . 1 Gun 18 | . 18 . . . . . . . . . . Cannon . | . . . . . . . . . . . . Launcher 1 | . . . . . . . . . . . 1 Special . | . . . . . . . . . . . . Kinetic . | . . . . . . . . . . . . Thermal 8 | . 8 . . . . . . . . . . Explosive . | . . . . . . . . . . . . Electromagnetic 11 | . 10 . . . . . . . . . 1 Robot Hit Streak 5 | . 5 . . . . . . . . . 1 Robot Miss Streak 5 | . 5 . . . . . . . . . 2 Penetration Max . | . . . . . . . . . . . . Secondary Targets . | . . . . . . . . . . . . Shots Hit Robots 35 | . 9 . . . . . . . . 1 25 Core Hits 27 | . 5 . . . . . . . . 1 21 Critical Kills . | . . . . . . . . . . . . Critical Parts Destroyed . | . . . . . . . . . . . . Critical Strikes 1 | . . . . . . . . . . . 1 Sever 1 | . . . . . . . . . . . 1 Melee Attacks 56 | . . . . . . . . . . 3 53 Impact . | . . . . . . . . . . . . Slashing 56 | . . . . . . . . . . 3 53 Piercing . | . . . . . . . . . . . . Sneak Attacks 6 | . . . . . . . . . . 1 5 Combat Hostiles . | . . . . . . . . . . . . Follow-up Attacks 2 | . . . . . . . . . . . 2 Damage Inflicted 1888 | . 139 . . 5 . . . . . 101 1643 Guns 107 | . 107 . . . . . . . . . . Cannons . | . . . . . . . . . . . . Explosions 176 | . 32 . . . . . . . . . 144 Melee 1600 | . . . . . . . . . . 101 1499 Ramming 5 | . . . . 5 . . . . . . . Kinetic . | . . . . . . . . . . . . Thermal 53 | . 53 . . . . . . . . . . Explosive . | . . . . . . . . . . . . Electromagnetic 230 | . 86 . . . . . . . . . 144 Impact . | . . . . . . . . . . . . Slashing 1600 | . . . . . . . . . . 101 1499 Piercing . | . . . . . . . . . . . . Highest Corruption 6 | . 5 . . . . . . . 6 1 6 Average Corruption 1 | . 5 . . . . . . . 2 1 2 Corruption Purged . | . . . . . . . . . . . . Corruption Blocked . | . . . . . . . . . . . . Effects 5 | . 2 . . . . . . . 1 1 1 Matter Fused 1 | . . . . . . . . . . 1 . Energy Discharges 1 | . 1 . . . . . . . . . . Data Loss (minor) 2 | . 1 . . . . . . . 1 . . Alerts 1 | . . . . . . . . . . . 1 Overload Shots . | . . . . . . . . . . . . Overflow Damage 42 | . . . . . . . . . . . 42 Projectiles . | . . . . . . . . . . . . Explosions . | . . . . . . . . . . . . Melee 42 | . . . . . . . . . . . 42 Knockbacks . | . . . . . . . . . . . . Impact . | . . . . . . . . . . . . Kinetic . | . . . . . . . . . . . . Secondary . | . . . . . . . . . . . . Self-Inflicted Damage 40 | . 38 . . 2 . . . . . . . Shots 1 | . 1 . . . . . . . . . . Rammed 1 | . . . . 1 . . . . . . . Targets Rammed 1 | . . . . 1 . . . . . . . Kicked . | . . . . . . . . . . . . Crushed . | . . . . . . . . . . . . Highest Temperature 73 | . 73 . . . . . . . . . 9 Average Temperature 46 | . 50 . . . . . . . . . 7 Received Heat Transfer 418 | . 42 . 45 126 . . . . 60 73 72 Siege Activations . | . . . . . . . . . . . . Robots Corrupted . | . . . . . . . . . . . . Combat Hostiles . | . . . . . . . . . . . . Parts Fried . | . . . . . . . . . . . . Impact Corruptions . | . . . . . . . . . . . . Robots Melted . | . . . . . . . . . . . . Combat Hostiles . | . . . . . . . . . . . . Parts Melted 1 | . 1 . . . . . . . . . . Heat Transferred 100 | . 100 . . . . . . . . . . Parts Sabotaged . | . . . . . . . . . . . . Parts Stolen . | . . . . . . . . . . . . Parts Stripped . | . . . . . . . . . . . . Power Chain Reactions 1 | . 1 . . . . . . . . . . Missiles Intercepted . | . . . . . . . . . . . . Alert | -11 -10 -9 -8 -7 -6 -6 -5 -4 -4 -3 -2 ------- Run | Scr Mat Mat Mat Fac Fac DSF Fac Fac DSF Res Res Peak Influence 671 | . 129 83 98 126 56 39 88 57 43 230 671 Initial 127 | . . 53 34 35 56 39 14 42 43 9 127 Average 162 | . 69 74 61 61 56 34 52 51 31 140 343 Maximum Alert Level 2 | . . . . . . . . . . 1 2 Low Security (%) 73 | 100 100 100 100 100 100 100 100 100 100 70 32 Level 1 13 | . . . . . . . . . . 29 29 Level 2 13 | . . . . . . . . . . . 38 Level 3 . | . . . . . . . . . . . . Level 4 . | . . . . . . . . . . . . Level 5 . | . . . . . . . . . . . . High Security . | . . . . . . . . . . . . Max Security . | . . . . . . . . . . . . Squads Dispatched 14 | . 1 2 . 1 . . 2 . 1 3 4 Investigation 7 | . . 1 . . . . 1 . . 2 3 Extermination . | . . . . . . . . . . . . Reinforcement 7 | . 1 1 . 1 . . 1 . 1 1 1 Assault . | . . . . . . . . . . . . Garrison . | . . . . . . . . . . . . Intercept . | . . . . . . . . . . . . Searches Triggered . | . . . . . . . . . . . . Construction Impeded . | . . . . . . . . . . . . Haulers Reinforced . | . . . . . . . . . . . . Active Scanning Responses . | . . . . . . . . . . . . Cargo Convoy Interrupts . | . . . . . . . . . . . . Stealth | -11 -10 -9 -8 -7 -6 -6 -5 -4 -4 -3 -2 --------- Run | Scr Mat Mat Mat Fac Fac DSF Fac Fac DSF Res Res Distress Signals 6 | . . 1 . 1 . . . . . 2 2 Communications Jammed 3 | . . . . . . . . . . . 3 Distress Signals 3 | . . . . . . . . . . . 3 Times Spotted 91 | . 7 3 4 11 . 1 4 1 6 17 37 Peak Tracking Total 9 | . 7 3 4 7 . 1 3 1 7 9 9 Tactical Retreats 14 | . . . . 2 . . 2 . 1 4 5 Traps | -11 -10 -9 -8 -7 -6 -6 -5 -4 -4 -3 -2 ------- Run | Scr Mat Mat Mat Fac Fac DSF Fac Fac DSF Res Res Traps Triggered 5 | . . 1 . . . . . . 2 . 2 Indirectly . | . . . . . . . . . . . . Trap Hack Attempts . | . . . . . . . . . . . . Triggered . | . . . . . . . . . . . . Disarmed . | . . . . . . . . . . . . Reprogrammed . | . . . . . . . . . . . . Reused . | . . . . . . . . . . . . Traps Extracted . | . . . . . . . . . . . . Installed . | . . . . . . . . . . . . Triggered . | . . . . . . . . . . . . Machines | -11 -10 -9 -8 -7 -6 -6 -5 -4 -4 -3 -2 ---------- Run | Scr Mat Mat Mat Fac Fac DSF Fac Fac DSF Res Res Machines Disabled 1 | . 1 . . . . . . . . . . Max in Single Turn 1 | . 1 . . . . . . . . . . Machines Sabotaged . | . . . . . . . . . . . . Garrisons Compromised . | . . . . . . . . . . . . Overloaded Fab Kills . | . . . . . . . . . . . . Hacking | -11 -10 -9 -8 -7 -6 -6 -5 -4 -4 -3 -2 --------- Run | Scr Mat Mat Mat Fac Fac DSF Fac Fac DSF Res Res Machines Accessed 20 | . 3 . 1 2 1 . 4 1 . 4 4 Terminals 19 | . 3 . 1 2 1 . 3 1 . 4 4 Fabricators . | . . . . . . . . . . . . Repair Stations . | . . . . . . . . . . . . Recycling Units . | . . . . . . . . . . . . Scanalyzers . | . . . . . . . . . . . . Garrison Access 1 | . . . . . . . 1 . . . . Total Hacks 44 | . 6 . 3 4 2 . 9 2 . 9 9 Successful 19 | . 3 . 3 3 1 . 3 1 . 2 3 Failed 25 | . 3 . . 1 1 . 6 1 . 7 6 Catastrophic 6 | . 2 . . . . . 1 . . 1 2 Database Lockouts . | . . . . . . . . . . . . Manual 18 | . 5 . 2 1 . . 2 . . 2 6 Terminals 41 | . 6 . 3 4 2 . 6 2 . 9 9 Fabricators . | . . . . . . . . . . . . Repair Stations . | . . . . . . . . . . . . Recycling Units . | . . . . . . . . . . . . Scanalyzers . | . . . . . . . . . . . . Garrison Access 3 | . . . . . . . 3 . . . . Terminal Hacks 13 | . 1 . 2 3 1 . 2 1 . 2 1 Record 1 | . . . . . . . . . . 1 . Prototype ID Bank 1 | . 1 . . . . . . . . . . Open DSF 5 | . . . . 1 1 . 1 1 . 1 . Level Access Points 3 | . . . 1 1 . . 1 . . . . Branch Access Points 1 | . . . . 1 . . . . . . . Terminal Index 1 | . . . . . . . . . . . 1 Zone Layout 1 | . . . 1 . . . . . . . . Fabricator Hacks . | . . . . . . . . . . . . Repair Station Hacks . | . . . . . . . . . . . . Recycling Unit Hacks . | . . . . . . . . . . . . Scanalyzer . | . . . . . . . . . . . . Garrison Access Hacks . | . . . . . . . . . . . . Unauthorized Hacks 6 | . 2 . 1 . . . 1 . . . 2 Terminals 6 | . 2 . 1 . . . 1 . . . 2 Botnet 6 | . 2 . 1 . . . 1 . . . 2 Fabricators . | . . . . . . . . . . . . Repair Stations . | . . . . . . . . . . . . Recycling Units . | . . . . . . . . . . . . Scanalyzers . | . . . . . . . . . . . . Garrison Access . | . . . . . . . . . . . . Data Cores Recovered . | . . . . . . . . . . . . Used . | . . . . . . . . . . . . Hacking Detections 15 | . 3 . . . . . 3 1 . 4 4 Full Trace Events 6 | . . . . . . . 1 . . 2 3 Feedback Events 1 | . . . . . . . . . . 1 . Corruption 1 | . . . . . . . . . . 1 . Feedback Blocked . | . . . . . . . . . . . . Robot Schematics Acquired . | . . . . . . . . . . . . Robots Built . | . . . . . . . . . . . . Authchips . | . . . . . . . . . . . . Time . | . . . . . . . . . . . . Total Robot Build Rating . | . . . . . . . . . . . . Part Schematics Acquired . | . . . . . . . . . . . . Parts Built . | . . . . . . . . . . . . Authchips . | . . . . . . . . . . . . Time . | . . . . . . . . . . . . Total Part Build Rating . | . . . . . . . . . . . . Parts Repaired . | . . . . . . . . . . . . Time . | . . . . . . . . . . . . Parts Recycled . | . . . . . . . . . . . . Recycled Matter . | . . . . . . . . . . . . Retrieved Matter . | . . . . . . . . . . . . Retrieved Components . | . . . . . . . . . . . . Parts Scanalyzed . | . . . . . . . . . . . . Part Schematics Acquired . | . . . . . . . . . . . . Parts Damaged . | . . . . . . . . . . . . Bothacking | -11 -10 -9 -8 -7 -6 -6 -5 -4 -4 -3 -2 ------------ Run | Scr Mat Mat Mat Fac Fac DSF Fac Fac DSF Res Res Used RIF Installer . | . . . . . . . . . . . . Robots Hacked . | . . . . . . . . . . . . Non-combat . | . . . . . . . . . . . . Combat . | . . . . . . . . . . . . Robot Hacks Applied . | . . . . . . . . . . . . Relay Couplers Released . | . . . . . . . . . . . . Fabnet Peak Effective % . | . . . . . . . . . . . . Robots Rewired . | . . . . . . . . . . . . Allies Hacked . | . . . . . . . . . . . . Hacks Repelled . | . . . . . . . . . . . . Allies | -11 -10 -9 -8 -7 -6 -6 -5 -4 -4 -3 -2 -------- Run | Scr Mat Mat Mat Fac Fac DSF Fac Fac DSF Res Res Total Allies . | . . . . . . . . . . . . Largest Group . | . . . . . . . . . . . . Highest-Rated Group . | . . . . . . . . . . . . Highest-Rated Ally . | . . . . . . . . . . . . Total Orders . | . . . . . . . . . . . . Ally Attacks . | . . . . . . . . . . . . Total Damage . | . . . . . . . . . . . . Kills . | . . . . . . . . . . . . Allies Corrupted . | . . . . . . . . . . . . Allies Melted . | . . . . . . . . . . . . Intel | -11 -10 -9 -8 -7 -6 -6 -5 -4 -4 -3 -2 ------- Run | Scr Mat Mat Mat Fac Fac DSF Fac Fac DSF Res Res Robot Analysis Total . | . . . . . . . . . . . . Derelict Logs Recovered . | . . . . . . . . . . . . Drone Launches . | . . . . . . . . . . . . Drone Recoveries . | . . . . . . . . . . . . Exploration | -11 -10 -9 -8 -7 -6 -6 -5 -4 -4 -3 -2 ------------- Run | Scr Mat Mat Mat Fac Fac DSF Fac Fac DSF Res Res Turns Passed 1303 | 27 122 48 50 123 60 32 86 98 58 158 441 Spaces Moved 2744 | 33 156 121 110 289 113 61 209 257 107 387 901 Core 311 | 33 83 . . 46 113 36 . . . . . Treads . | . . . . . . . . . . . . Legs . | . . . . . . . . . . . . Wheels . | . . . . . . . . . . . . Hover . | . . . . . . . . . . . . Flight 2433 | . 73 121 110 243 . 25 209 257 107 387 901 Fastest Speed 16 | 50 37 34 34 40 50 34 34 34 34 34 16 Average Speed 34 | 50 44 34 35 41 50 43 37 35 34 34 26 Slowest Speed 120 | 50 120 34 40 50 50 50 40 40 34 37 34 Overloaded Moves 5 | . . . . . . . . . . . 5 Propulsion Burnouts . | . . . . . . . . . . . . Robots Hopped 27 | . 1 . 4 4 . . 3 1 . 5 9 Cave-ins Triggered . | . . . . . . . . . . . . Exploration Rate (%) 25 | 2 35 15 12 12 4 80 9 7 85 17 30 Regions Visited 11 Branch Regions . Pre-discovered Areas . | . . . . . . . . . . . . Known Exits Taken 6 | . . . 1 1 1 . 1 1 . 1 . Unknown Exits Taken 3 | 1 1 1 . . . . . . . . . Scrap Searched . | . . . . . . . . . . . . Spaces Dug 21 | . . . . . . . . . . 2 19 Terrain Destroyed 23 | . 2 . . . . . . . . 2 19 Melee 21 | . . . . . . . . . . 2 19 Projectile . | . . . . . . . . . . . . AOE 2 | . 2 . . . . . . . . . . Terrain Rammed . | . . . . . . . . . . . . Walls Destroyed . | . . . . . . . . . . . . Machines Disabled . | . . . . . . . . . . . . Actions | -11 -10 -9 -8 -7 -6 -6 -5 -4 -4 -3 -2 --------- Run | Scr Mat Mat Mat Fac Fac DSF Fac Fac DSF Res Res Total 2953 | 40 189 127 116 287 115 64 211 262 126 400 1016 Wait 37 | . 11 . 4 . . . . . . 12 10 Move 2684 | 32 153 120 102 281 113 60 202 254 106 376 885 Hop 23 | . 1 . 3 3 . . 3 1 . 5 7 Pick Up 31 | 4 2 3 1 1 . . 2 2 . . 16 Fast Attach 42 | 4 5 . 2 . 2 3 1 3 3 3 16 Attach 23 | . 1 1 1 . . . 3 1 1 . 15 Detach 8 | . 1 . 1 . . . . . . 1 5 Swap 5 | . . 1 . . . . . . . . 4 Drop 18 | . 5 2 2 1 . 1 . 1 . . 6 Fire 11 | . 10 . . . . . . . . . 1 Melee 54 | . . . . . . . . . . 3 51 Ram 1 | . . . . 1 . . . . . . . Kick . | . . . . . . . . . . . . Crush . | . . . . . . . . . . . . Escape Stasis 16 | . . . . . . . . . 16 . . Rewire . | . . . . . . . . . . . . Trap . | . . . . . . . . . . . . Miscellaneous . | . . . . . . . . . . . . Route ------- -11/Scrapyard -10/Materials (discovered 2 exits: [*Mat] / [*Min]) -9/Materials -8/Materials (discovered 3 exits: *Fac x3) -7/Factory (discovered 7 exits: *Fac x4 / Sto / Low x2) -6/Factory -6/DSF -5/Factory (discovered 4 exits: *Fac x4) -4/Factory (discovered 2 exits: *Upp / DSF) -4/DSF -3/Research -2/Research History --------- Turn | Location | Event 17 | -11/Scrapyard | Discovered new exit (range 15) 28 | -11/Scrapyard | Entered Materials 128 | -10/Materials | Discovered new exit (range 6) 146 | -10/Materials | Discovered new exit (range 15) 150 | -10/Materials | Entered another Materials area 150 | -9/Materials | Evolved 2 slots: Propulsion x2 193 | -9/Materials | Discovered new exit (range 13) 198 | -9/Materials | Entered another Materials area 198 | -8/Materials | Evolved 2 slots: Propulsion x1, Utility x1 225 | -8/Materials | Identified exit to Factory 248 | -8/Materials | Entered Factory 248 | -7/Factory | Evolved 2 slots: Power x1, Propulsion x1 306 | -7/Factory | Build established: Mutant 306 | -7/Factory | Identified exit to Storage 306 | -7/Factory | Identified exit to Lower Caves 306 | -7/Factory | Identified exit to Factory 370 | -7/Factory | Core integrity fell below 50% 371 | -7/Factory | Entered another Factory area 371 | -6/Factory | Evolved 2 slots: Utility x2 431 | -6/Factory | Identified exit to DSF 431 | -6/Factory | Entered DSF 458 | -6/DSF | Additional patrols routed to DSF 458 | -6/DSF | Discovered new exit (range 14) 463 | -6/DSF | Entered Factory 463 | -5/Factory | Evolved 2 slots: Utility x2 500 | -5/Factory | Identified exit to Factory 549 | -5/Factory | Entered another Factory area 549 | -4/Factory | Evolved 2 slots: Utility x2 585 | -4/Factory | Spotted B-86 Titan 641 | -4/Factory | Discovered new exit (range 7) 643 | -4/Factory | Identified exit to Upper Caves 647 | -4/Factory | Identified exit to DSF 647 | -4/Factory | Entered DSF 672 | -4/DSF | Additional patrols routed to DSF 687 | -4/DSF | Discovered new exit (range 14) 692 | -4/DSF | Identified exit to Research 705 | -4/DSF | Entered Research 705 | -3/Research | Evolved 2 slots: Utility x2 860 | -3/Research | Discovered new exit (range 13) 863 | -3/Research | Identified exit to Research 863 | -3/Research | Entered another Research area 863 | -2/Research | Evolved 2 slots: Propulsion x2 900 | -2/Research | Found Gamma Bomb Array 1242 | -2/Research | Build established: Sprinter 1291 | -2/Research | Lost 3 parts (1n2u) 1304 | -2/Research | Self-destructed Last Messages --------------- >>Trojan(Botnet) Trojan loaded successfully. Testing... Terminal linked with 1 system. Awaiting botnet instructions. 01293_ ALERT: Suspicious activity at Terminal R011. Dispatching Investigation squad. 01294_ Lgt. Antimatter Reactor destroyed. 01295_ S-43 Plague destroyed. 01296_ Nuclear Pulse Array destroyed. 01297_ Xenon Bombardment Thruster destroyed. 01300_ Impulse Thruster destroyed. 01300_ Xenon Bombardment Thruster destroyed. 01302_ S-43 Plague destroyed. 01302_ Acquired Corrupted Xenon Bombardment Thruster. 01302_ Integrated Corrupted Xenon Bombardment Thruster (+2). 01302_ Complication: Exp. Heat Sink rejected. 01302_ Complication: Imp. Transmission Jammer rejected. 01303_ Xenon Bombardment Thruster destroyed. 01304_ Lgt. Quantum Reactor destroyed. Map ----- +----------------------------------------------------+ | ?????????????????????????????????????????????????? | | ?????????????????????????????????????????????????? | | ?????????????????????????????????????????????????? | | ?????????????????????????????????????????????????? | | ?????????????????????????????????????????????????? | | ?????????????????????????????????????????????????? | | ?????????????????????????????????????????????????? | | ?????????????????????????????????????????????????? | | ?????????????????????????????????????????????????? | | ?????????????????????????????????????????????????? | | ?????????????????????????????????????????????????? | | ?????????????????????????##?#####????????????????? | | ?????????????????????????#"""""""""""#???????????? | | ??????????????????????#### """"T"""" ###?????????? | | ??????????????????????# #?????????? | | ??????????????????????# #?????????? | | ??????????????????????# #?????????? | | ??????????????????????# #?????????? | | ?????????????########?# #?????????? | | ?????????????# #?# ??????????? | | ?????????????# = #??? ????????????? | | ?????????????#"" #????? ????????????#?? | | ?????????????#"T #??????? ?????????#### ### | | ?????????????#"" ##########/#########? !== # | | ?????????????# # != #? !== # | | ?????????????# p @%* # !== # | | ?????????????# ! # [ # # | | ?????????????# #sss ; # | | ?????????????# #=% ########## g# # | | ?????????????# #%[ #????????# # # | | ?????????????# #s s#????????# #? # | | ?????????????# # #????????# #?######### | | ?????????????# # #????????# #?????????? | | ????###?###??###"#### #????????# = #?????????? | | ???##"###"######"#### #????????# ! #?????????? | | ???# """"""" # #????????#%!! ##????????? | | ???# """"""" # #????????#!! "########## | | ???# """"""" # #????????#!! # # | | ???# # #????????# # # | | ???# # #????????# # """"" # | | ???#!= # #????????#^ ^ # """"" # | | ???#!= # #????????+ + """""??? | | ???# # #????????# # """""??? | | ???# # #????????# # ?? | | ???#"###########/#### ########?# # # | | ???##"######## #?# ########### | | ????## ### #?????????? | | ###??# T## #????????#? | | ####+##+#### ## #?????????# | | ## ############### ### #????#???## | +----------------------------------------------------+ Best States ------------- Heat Dissipation 127 Coolant Potential 100 Energy Generation 39 Energy Capacity 390 Matter Stores 300 Matter Capacity 300 Sight Range 16 Robot Scan Range 16 Terrain Scan Range 16 Terrain Scan Density 85 Jamming Range 14 Armor Coverage 150 Utility Shielding 66 Evasion (%) 76 Recoil Reduction 2 Kinecelleration 30 Offensive Hacking 10 Item Schematics ----------------- None Robot Schematics ------------------ None Fabricated ------------ Nothing Alien Tech Used ----------------- None Achievements -------------- None Challenges ------------ None Game ------ Seed AerolevDeliveryDevice Manual? 0 Play Time 00:31:25 Cumulative 478.4 hours Start 2022.09.01 @ 16:51:22 End 2022.09.01 @ 17:23:30 Sessions 1 Manual Loads 0 Difficulty Rogue Special Mode None Game No. 547 Rogue 546 Adventurer 0 Explorer 1 Win Type - Total 15 Types 10/0/2/3/0/0/0/0/0 Lore% 80 Gallery% 88 Achievement% 70 Wizard Run 0 Options --------- ASCII 0 Keyboard 1 Movement Vi Keybinds 0 Fullscreen 1 Font 18/SmallcapsGlow Map View 76x50 Tactical HUD 1 Map Filters NONE Filters NONE Steam 1 RUN: 4751d0c9-8001-4802-9d71-950052a5c890